fUSD/lending_fUSD_20250606
["ID","MTS","AMOUNT","RATE_DAILY","PERIOD"]
[364652276,1749181847114,-500.0,0.00030164,7]
[364652277,1749181847123,-502.32635105,0.00030164,7]
[364652278,1749181847133,-151.0,0.00030164,7]
[364652279,1749181847143,-151.0,0.00030164,7]
[364652280,1749181847152,-480.0,0.00030164,7]
[364652281,1749181847161,-462.15104041,0.00030164,7]
[364652282,1749181847170,-462.1176797,0.00030164,7]
[364652283,1749181847179,-151.0,0.00030164,7]
[364652284,1749181847188,-490.10227196,0.00030164,7]
[364652285,1749181847198,-151.0,0.00030164,7]
[364652286,1749181847207,-480.0,0.00030164,7]
[364652287,1749181847216,-480.0,0.00030164,7]
[364652288,1749181847225,-500.0,0.00030164,7]
[364652289,1749181847235,-480.0,0.00030164,7]
[364652290,1749181847244,-480.0,0.00030164,7]
[364652291,1749181847254,-239.93045498,0.00030164,7]
[364652292,1749181847263,-480.0,0.00030164,7]
[364652293,1749181847273,-469.05084811,0.00030164,7]
[364652294,1749181847283,-151.0,0.00030164,7]
[364652295,1749181847292,-373.85584544,0.00030164,7]
[364652296,1749181847301,-151.0,0.00030164,7]
[364652297,1749181847310,-151.0,0.00030164,7]
[364652298,1749181847319,-480.0,0.00030164,7]
[364652299,1749181847329,-480.0,0.00030164,7]
[364652300,1749181847339,-419.20933824,0.00030164,7]
[364652301,1749181847348,-505.99725992,0.00030164,7]
[364652302,1749181847357,-487.97499973,0.00030164,7]
[364652303,1749181847366,-420.0,0.00030164,7]
[364652304,1749181847376,-683.3,0.00030164,7]
[364652305,1749181847386,-483.23743115,0.00030164,7]
[364652306,1749181847396,-460.0,0.00030164,7]
[364652307,1749181847407,-480.0,0.00030164,7]
[364652308,1749181847419,-480.0,0.00030164,7]
[364652309,1749181847429,-425.57769929,0.00030164,7]
[364652310,1749181847439,-507.47543912,0.00030164,7]
[364652311,1749181847450,-480.0,0.00030164,7]
[364652312,1749181847461,-480.0,0.00030164,7]
[364652313,1749181847471,-490.96200865,0.00030164,7]
[364652314,1749181847481,-1285.28,0.00030164,7]
[364652315,1749181847492,-480.0,0.00030164,7]
[364652316,1749181847502,-480.0,0.00030164,7]
[364652317,1749181847512,-480.0,0.00030164,7]
[364652318,1749181847521,-480.0,0.00030164,7]
[364652319,1749181847530,-1025.69,0.00030164,7]
[364652320,1749181847539,-426.57189992,0.00030164,7]
[364652321,1749181847548,-480.0,0.00030164,7]
[364652322,1749181847557,-480.0,0.00030164,7]
[364652323,1749181847567,-494.53481212,0.00030164,7]
[364652324,1749181847575,-151.0,0.00030164,7]
[364652325,1749181847585,-151.0,0.00030164,7]
[364652326,1749181847594,-480.0,0.00030164,7]
[364652327,1749181847603,-486.89178278,0.00030164,7]
[364652328,1749181847612,-480.0,0.00030164,7]
[364652329,1749181847621,-466.6031885,0.00030164,7]
[364652330,1749181847631,-464.30648307,0.00030164,7]
[364652331,1749181847640,-480.0,0.00030164,7]
[364652332,1749181847651,-161.013351,0.00030164,7]
[364652333,1749181847660,-548.45,0.00030164,7]
[364652334,1749181847670,-557.22684627,0.00030164,7]
[364652335,1749181847679,-600.0,0.00030164,2]
[364652336,1749181847689,-503.62344121,0.00030164,7]
[364652337,1749181847698,-480.0,0.00030164,7]
[364652338,1749181847707,-603.85,0.00030164,7]
[364652339,1749181847716,-480.0,0.00030164,7]
[364652340,1749181847725,-483.38149312,0.00030164,7]
[364652341,1749181847734,-480.0,0.00030164,7]
[364652342,1749181847743,-892.29,0.00030164,7]
[364652343,1749181847753,-480.0,0.00030164,7]
[364652344,1749181847762,-480.0,0.00030164,7]
[364652345,1749181847772,-481.26475001,0.00030164,7]
[364652346,1749181847781,-463.17201538,0.00030164,7]
[364652347,1749181847791,-151.0,0.00030164,7]
[364652348,1749181847801,-973.161388,0.00030164,7]
[364652349,1749181847811,-480.0,0.00030164,7]
[364652350,1749181847820,-151.0,0.00030164,7]
[364652351,1749181847830,-973.161388,0.00030164,7]
[364652352,1749181847839,-480.0,0.00030164,7]
[364652353,1749181847849,-480.0,0.00030164,7]
[364652354,1749181847858,-480.0,0.00030164,7]
[364652355,1749181847867,-781.77,0.00030164,7]
[364652356,1749181847876,-648.99,0.00030164,7]
[364652357,1749181847886,-973.161388,0.00030164,7]
[364652358,1749181847897,-483.65379285,0.00030164,7]
[364652359,1749181847906,-973.161388,0.00030164,7]
[364652360,1749181847915,-480.0,0.00030164,7]
[364652361,1749181847924,-336.52710451,0.00030164,7]
[364652362,1749181847933,-996.52,0.00030164,7]
[364652363,1749181847943,-480.0,0.00030164,7]
[364652364,1749181847952,-421.28293949,0.00030164,7]
[364652365,1749181847961,-480.0,0.00030164,7]
[364652366,1749181847971,-777.33,0.00030164,7]
[364652367,1749181847980,-424.05378161,0.00030164,7]
[364652368,1749181847989,-480.0,0.00030164,7]
[364652369,1749181847998,-480.0,0.00030164,7]
[364652370,1749181848008,-480.0,0.00030164,7]
[364652371,1749181848017,-679.42,0.00030164,7]
[364652372,1749181848026,-627.85645931,0.00030164,7]
[364652373,1749181848035,-480.0,0.00030164,7]
[364652374,1749181848045,-480.0,0.00030164,7]
[364652375,1749181848054,-480.0,0.00030164,7]
[364652376,1749181848063,-480.0,0.00030164,7]
[364652377,1749181848072,-480.0,0.00030164,7]
[364652378,1749181848082,-480.0,0.00030164,7]
[364652379,1749181848092,-480.0,0.00030164,7]
[364652380,1749181848101,-480.0,0.00030164,7]
[364652381,1749181848110,-818.86,0.00030164,7]
[364652382,1749181848119,-480.0,0.00030164,7]
[364652383,1749181848128,-480.0,0.00030164,7]
[364652384,1749181848137,-480.0,0.00030164,7]
[364652385,1749181848148,-480.0,0.00030164,7]
[364652386,1749181848157,-480.0,0.00030164,7]
[364652387,1749181848167,-502.92,0.00030164,7]
[364652388,1749181848176,-360.0,0.00030164,7]
[364652389,1749181848186,-480.0,0.00030164,7]
[364652390,1749181848196,-488.39739566,0.00030164,7]
[364652391,1749181848206,-480.0,0.00030164,7]
[364652392,1749181848215,-480.0,0.00030164,7]
[364652393,1749181848225,-460.0,0.00030164,7]
[364652394,1749181848234,-480.0,0.00030164,7]
[364652395,1749181848244,-892.45,0.00030164,7]
[364652396,1749181848254,-480.0,0.00030164,7]
[364652397,1749181848263,-1191.278394,0.00030164,7]
[364652398,1749181848273,-1191.278394,0.00030164,7]
[364652399,1749181848283,-434.7448199,0.00030164,7]
[364652400,1749181848292,-1191.278394,0.00030164,7]
[364652401,1749181848302,-480.0,0.00030164,7]
[364652402,1749181848312,-152.014466,0.00030164,7]
[364652403,1749181848322,-413.45219751,0.00030164,7]
[364652404,1749181848331,-491.7678057,0.00030164,7]
[364652405,1749181848341,-480.0,0.00030164,7]
[364652406,1749181848351,-486.41058017,0.00030164,7]
[364652407,1749181848361,-572.51,0.00030164,7]
[364652408,1749181848371,-1191.278394,0.00030164,7]
[364652409,1749181848381,-1191.278394,0.00030164,7]
[364652410,1749181848391,-1191.278394,0.00030164,7]
[364652411,1749181848402,-489.96060196,0.00030164,7]
[364652412,1749181848414,-480.0,0.00030164,7]
[364652413,1749181848424,-480.0,0.00030164,7]
[364652414,1749181848434,-480.0,0.00030164,7]
[364652415,1749181848444,-480.0,0.00030164,7]
[364652416,1749181848464,-480.0,0.00030164,7]
[364652417,1749181848475,-480.0,0.00030164,7]
[364652418,1749181848485,-480.0,0.00030164,7]
[364652419,1749181848496,-151.921268,0.00030164,7]
[364652420,1749181848506,-151.921268,0.00030164,7]
[364652421,1749181848515,-151.4469,0.00030164,7]
[364652422,1749181848526,-151.921268,0.00030164,7]
[364652423,1749181848536,-480.0,0.00030164,7]
[364652424,1749181848546,-480.0,0.00030164,7]
[364652425,1749181848556,-480.0,0.00030164,7]
[364652426,1749181848567,-480.0,0.00030164,7]
[364652427,1749181848578,-480.0,0.00030164,7]
[364652428,1749181848588,-480.0,0.00030164,7]
[364652429,1749181848597,-480.0,0.00030164,7]
[364652430,1749181848607,-490.76457102,0.00030164,7]
[364652431,1749181848617,-151.921268,0.00030164,7]
[364652432,1749181848626,-151.921268,0.00030164,7]
[364652433,1749181848636,-480.0,0.00030164,7]
[364652434,1749181848647,-480.0,0.00030164,7]
[364652435,1749181848657,-151.921268,0.00030164,7]
[364652436,1749181848667,-480.0,0.00030164,7]
[364652437,1749181848677,-480.0,0.00030164,7]
[364652438,1749181848687,-480.0,0.00030164,7]
[364652439,1749181848697,-497.16955935,0.00030164,7]
[364652440,1749181848707,-480.0,0.00030164,7]
[364652441,1749181848716,-420.0,0.00030164,7]
[364652442,1749181848727,-536.84,0.00030164,7]
[364652443,1749181848737,-480.0,0.00030164,7]
[364652444,1749181848747,-941.74,0.00030164,7]
[364652445,1749181848756,-497.52,0.00030164,7]
[364652446,1749181848766,-627.115345,0.00030164,7]
[364652447,1749181848776,-480.0,0.00030164,7]
[364652448,1749181848786,-370.26493977,0.00030164,7]
[364652449,1749181848796,-472.09909013,0.00030164,7]
[364652450,1749181848807,-480.0,0.00030164,7]
[364652451,1749181848817,-480.0,0.00030164,2]
[364652452,1749181848827,-480.0,0.00030164,7]
[364652453,1749181848837,-357.83408628,0.00030164,7]
[364652454,1749181848847,-480.0,0.00030164,7]
[364652455,1749181848857,-482.7978479,0.00030164,7]
[364652456,1749181848867,-480.0,0.00030164,7]
[364652457,1749181848876,-480.0,0.00030164,7]
[364652458,1749181848886,-480.0,0.00030164,7]
[364652459,1749181848897,-365.30662621,0.00030164,7]
[364652460,1749181848907,-480.0,0.00030164,7]
[364652461,1749181848917,-151.0,0.00030164,7]
[364652462,1749181848928,-151.0,0.00030164,7]
[364652463,1749181848937,-480.0,0.00030164,7]
[364652464,1749181848946,-480.0,0.00030164,7]
[364652465,1749181848956,-480.0,0.00030164,7]
[364652466,1749181848966,-480.0,0.00030164,7]
[364652467,1749181848976,-552.11576029,0.00030164,7]
[364652468,1749181848986,-480.0,0.00030164,7]
[364652469,1749181848996,-433.26244758,0.00030164,7]
[364652470,1749181849006,-151.0,0.00030164,7]
[364652471,1749181849016,-151.0,0.00030164,7]
[364652472,1749181849027,-480.0,0.00030164,7]
[364652473,1749181849036,-559.48,0.00030164,7]
[364652474,1749181849046,-480.0,0.00030164,7]
[364652475,1749181849056,-482.18080561,0.00030164,7]
[364652476,1749181849066,-480.0,0.00030164,7]
[364652477,1749181849076,-480.0,0.00030164,7]
[364652478,1749181849085,-158.841649,0.00030164,7]
[364652479,1749181849095,-480.89807511,0.00030164,7]
[364652480,1749181849104,-158.841649,0.00030164,7]
[364652481,1749181849115,-513.11890785,0.00030164,7]
[364652482,1749181849124,-480.0,0.00030164,7]
[364652483,1749181849135,-480.0,0.00030164,7]
[364652484,1749181849145,-429.39492447,0.00030164,7]
[364652485,1749181849155,-429.56889342,0.00030164,7]
[364652486,1749181849165,-480.0,0.00030164,7]
[364652487,1749181849175,-480.0,0.00030164,7]
[364652488,1749181849185,-480.0,0.00030164,7]
[364652489,1749181849195,-422.8077953,0.00030164,7]
[364652490,1749181849205,-483.31580638,0.00030164,7]
[364652491,1749181849215,-158.841649,0.00030164,7]
[364652492,1749181849224,-158.841649,0.00030164,7]
[364652493,1749181849234,-485.47098484,0.00030164,7]
[364652494,1749181849244,-480.0,0.00030164,7]
[364652495,1749181849254,-722.02,0.00030164,7]
[364652496,1749181849264,-1285.61,0.00030164,7]
[364652497,1749181849273,-480.0,0.00030164,7]
[364652498,1749181849283,-480.0,0.00030164,7]
[364652499,1749181849293,-151.0,0.00030164,7]
[364652500,1749181849306,-151.0,0.00030164,7]
[364652501,1749181849316,-468.26953635,0.00030164,7]
[364652502,1749181849325,-480.0,0.00030164,7]
[364652503,1749181849335,-480.0,0.00030164,7]
[364652504,1749181849345,-480.0,0.00030164,7]
[364652505,1749181849354,-555.17860144,0.00030164,7]
[364652506,1749181849364,-480.0,0.00030164,7]
[364652507,1749181849375,-425.11222773,0.00030164,7]
[364652508,1749181849384,-482.2143295,0.00030164,7]
[364652509,1749181849394,-480.0,0.00030164,7]
[364652510,1749181849405,-421.57795427,0.00030164,7]
[364652511,1749181849418,-989.89,0.00030164,7]
[364652512,1749181849428,-480.0,0.00030164,7]
[364652513,1749181849438,-486.80132487,0.00030164,7]
[364652514,1749181849447,-1000.0,0.00030164,15]
[364652515,1749181849474,-493.25963774,0.00030164,7]
[364652516,1749181849485,-818.5,0.00030164,7]
[364652517,1749181849495,-480.0,0.00030164,7]
[364652518,1749181849505,-481.79838109,0.00030164,7]
[364652519,1749181849698,-847.14,0.00030164,7]
[364652520,1749181849716,-480.0,0.00030164,7]
[364652521,1749181849726,-480.0,0.00030164,7]
[364652522,1749181849735,-480.0,0.00030164,7]
[364652523,1749181849745,-151.0,0.00030164,7]
[364652524,1749181849754,-869.74,0.00030164,7]
[364652525,1749181849763,-420.18344827,0.00030164,7]
[364652526,1749181849773,-151.0,0.00030164,7]
[364652527,1749181849783,-480.0,0.00030164,7]
[364652528,1749181849792,-426.87521079,0.00030164,7]
[364652529,1749181849801,-480.0,0.00030164,2]
[364652530,1749181849811,-436.16033311,0.00030164,7]
[364652531,1749181849820,-1939.45,0.00030164,7]
[364652532,1749181849831,-480.0,0.00030164,7]
[364652533,1749181849840,-522.17166458,0.00030164,7]
[364652534,1749181849850,-480.0,0.00030164,7]
[364652535,1749181849859,-1210.56,0.00030164,7]
[364652536,1749181849869,-480.0,0.00030164,7]
[364652537,1749181849879,-1588.96,0.00030164,7]
[364652538,1749181849888,-151.0,0.00030164,7]
[364652539,1749181849899,-151.0,0.00030164,7]
[364652540,1749181849908,-483.26868124,0.00030164,7]
[364652541,1749181849918,-480.0,0.00030164,7]
[364652542,1749181849927,-480.0,0.00030164,7]
[364652543,1749181849937,-480.0,0.00030164,7]
[364652544,1749181849946,-151.0,0.00030164,7]
[364652545,1749181849955,-480.0,0.00030164,7]
[364652546,1749181849965,-778.9,0.00030164,7]
[364652547,1749181849975,-151.0,0.00030164,7]
[364652548,1749181849984,-480.0,0.00030164,7]
[364652549,1749181849994,-494.35060934,0.00030164,7]
[364652550,1749181850003,-493.87924817,0.00030164,7]
[364652551,1749181850013,-1146.36,0.00030164,7]
[364652552,1749181850023,-480.0,0.00030164,7]
[364652553,1749181850032,-487.53173442,0.00030164,7]
[364652554,1749181850042,-480.0,0.00030164,7]
[364652555,1749181850051,-484.39203584,0.00030164,7]
[364652556,1749181850061,-480.0,0.00030164,7]
[364652557,1749181850070,-488.19611162,0.00030164,7]
[364652558,1749181850080,-448.9188027,0.00030164,7]
[364652559,1749181850089,-480.0,0.00030164,7]
[364652560,1749181850099,-300.0,0.00030164,7]
[364652561,1749181850109,-480.0,0.00030164,7]
[364652562,1749181850118,-420.0,0.00030164,7]
[364652563,1749181850129,-857.01,0.00030164,7]
[364652564,1749181850138,-490.14906958,0.00030164,7]
[364652565,1749181850148,-1055.82,0.00030164,7]
[364652566,1749181850158,-480.0,0.00030164,7]
[364652567,1749181850168,-480.0,0.00030164,7]
[364652568,1749181850177,-480.0,0.00030164,7]
[364652569,1749181850187,-480.0,0.00030164,7]
[364652570,1749181850196,-480.0,0.00030164,7]
[364652571,1749181850205,-151.0,0.00030164,7]
[364652572,1749181850215,-151.0,0.00030164,7]
[364652573,1749181850224,-480.0,0.00030164,7]
[364652574,1749181850233,-1441.59,0.00030164,7]
[364652575,1749181850243,-482.71181895,0.00030164,7]
[364652576,1749181850252,-2026.12623085,0.00030164,7]
[364652577,1749181850261,-449.30207386,0.00030164,7]
[364652578,1749181850270,-480.0,0.00030164,7]
[364652579,1749181850280,-1575.81,0.00030164,7]
[364652580,1749181850289,-480.0,0.00030164,7]
[364652581,1749181850300,-388.32677842,0.00030164,7]
[364652582,1749181850309,-480.0,0.00030164,7]
[364652583,1749181850319,-408.83626208,0.00030164,7]
[364652584,1749181850328,-524.21,0.00030164,7]
[364652585,1749181850337,-860.57,0.00030164,7]
[364652586,1749181850347,-480.0,0.00030164,7]
[364652587,1749181850356,-482.23540605,0.00030164,7]
[364652588,1749181850365,-424.37092884,0.00030164,7]
[364652589,1749181850375,-480.0,0.00030164,7]
[364652590,1749181850385,-463.35635532,0.00030164,7]
[364652591,1749181850395,-480.0,0.00030164,7]
[364652592,1749181850404,-1686.25,0.00030164,7]
[364652593,1749181850417,-480.0,0.00030164,7]
[364652594,1749181850427,-610.29,0.00030164,7]
[364652595,1749181850436,-877.92,0.00030164,7]
[364652596,1749181850446,-500.0,0.00030164,7]
[364652597,1749181850456,-500.0,0.00030164,7]
[364652598,1749181850466,-500.0,0.00030164,7]
[364652599,1749181850476,-289.77101876,0.00030164,7]
[364652600,1749181850486,-500.0,0.00030164,7]
[364652601,1749181850496,-420.0,0.00030164,7]
[364652602,1749181850505,-500.0,0.00030164,7]
[364652603,1749181850515,-500.0,0.00030164,7]
[364652604,1749181850524,-500.0,0.00030164,7]
[364652605,1749181850534,-500.0,0.00030164,7]
[364652606,1749181850543,-197.231796,0.00030164,7]
[364652607,1749181850552,-500.0,0.00030164,7]
[364652608,1749181850562,-500.0,0.00030164,7]
[364652609,1749181850572,-500.0,0.00030164,7]
[364652610,1749181850582,-500.0,0.00030164,7]
[364652611,1749181850592,-197.231796,0.00030164,7]
[364652612,1749181850602,-507.73289218,0.00030164,7]
[364652613,1749181850612,-487.91754776,0.00030164,7]
[364652614,1749181850621,-500.0,0.00030164,7]
[364652615,1749181850630,-500.0,0.00030164,7]
[364652616,1749181850639,-500.0,0.00030164,7]
[364652617,1749181850650,-425.80705989,0.00030164,7]
[364652618,1749181850659,-480.0,0.00030164,7]
[364652619,1749181850668,-480.0,0.00030164,7]
[364652620,1749181850678,-480.0,0.00030164,7]
[364652621,1749181850687,-480.0,0.00030164,7]
[364652622,1749181850696,-486.31721398,0.00030164,7]
[364652623,1749181850706,-197.231796,0.00030164,7]
[364652624,1749181850715,-197.231796,0.00030164,7]
[364652625,1749181850725,-480.0,0.00030164,7]
[364652626,1749181850734,-422.38132047,0.00030164,7]
[364652627,1749181850744,-483.35347419,0.00030164,7]
[364652628,1749181850753,-480.0,0.00030164,7]
[364652629,1749181850762,-480.0,0.00030164,7]
[364652630,1749181850771,-480.0,0.00030164,7]
[364652631,1749181850781,-1354.39,0.00030164,7]
[364652632,1749181850790,-480.0,0.00030164,7]
[364652633,1749181850799,-480.64535471,0.00030164,7]
[364652634,1749181850809,-1875.93,0.00030164,7]
[364652635,1749181850818,-336.86568805,0.00030164,7]
[364652636,1749181850827,-404.32452553,0.00030164,7]
[364652637,1749181850836,-480.0,0.00030164,7]
[364652638,1749181850845,-480.0,0.00030164,7]
[364652639,1749181850855,-480.0,0.00030164,7]
[364652640,1749181850864,-535.50367172,0.00030164,7]
[364652641,1749181850873,-480.0,0.00030164,7]
[364652642,1749181850882,-480.0,0.00030164,7]
[364652643,1749181850891,-480.0,0.00030164,7]
[364652644,1749181850901,-480.0,0.00030164,7]
[364652645,1749181850910,-943.83,0.00030164,7]
[364652646,1749181850919,-480.0,0.00030164,7]
[364652647,1749181850928,-480.0,0.00030164,7]
[364652648,1749181850938,-698.2,0.00030164,7]
[364652649,1749181850947,-480.0,0.00030164,7]
[364652650,1749181850956,-480.0,0.00030164,7]
[364652651,1749181850965,-480.0,0.00030164,7]
[364652652,1749181850974,-151.0,0.00030164,7]
[364652653,1749181850983,-151.0,0.00030164,7]
[364652654,1749181850992,-151.0,0.00030164,7]
[364652655,1749181851002,-463.00953548,0.00030164,7]
[364652656,1749181851011,-474.80200705,0.00030164,7]
[364652657,1749181851020,-480.0,0.00030164,7]
[364652658,1749181851029,-480.0,0.00030164,7]
[364652659,1749181851039,-480.0,0.00030164,7]
[364652660,1749181851048,-816.74,0.00030164,7]
[364652661,1749181851057,-393.18905018,0.00030164,7]
[364652662,1749181851066,-151.0,0.00030164,7]
[364652663,1749181851076,-151.0,0.00030164,7]
[364652664,1749181851085,-480.0,0.00030164,7]
[364652665,1749181851094,-941.36,0.00030164,7]
[364652666,1749181851104,-151.0,0.00030164,7]
[364652667,1749181851113,-490.04368989,0.00030164,7]
[364652668,1749181851123,-480.0,0.00030164,7]
[364652669,1749181851132,-507.4897949,0.00030164,7]
[364652670,1749181851141,-480.0,0.00030164,7]
[364652671,1749181851152,-480.0,0.00030164,7]
[364652672,1749181851161,-480.0,0.00030164,7]
[364652673,1749181851170,-480.0,0.00030164,7]
[364652674,1749181851180,-1190.26,0.00030164,7]
[364652675,1749181851189,-480.0,0.00030164,7]
[364652676,1749181851198,-480.0,0.00030164,7]
[364652677,1749181851207,-482.18690529,0.00030164,7]
[364652678,1749181851216,-480.0,0.00030164,7]
[364652679,1749181851226,-480.0,0.00030164,7]
[364652680,1749181851235,-480.0,0.00030164,7]
[364652681,1749181851244,-480.0,0.00030164,7]
[364652682,1749181851253,-485.74498494,0.00030164,7]
[364652683,1749181851263,-480.0,0.00030164,7]
[364652684,1749181851272,-480.0,0.00030164,7]
[364652685,1749181851282,-482.95726208,0.00030164,7]
[364652686,1749181851291,-657.49,0.00030164,7]
[364652687,1749181851300,-483.4190331,0.00030164,7]
[364652688,1749181851310,-941.52,0.00030164,7]
[364652689,1749181851319,-392.66732608,0.00030164,7]
[364652690,1749181851328,-480.0,0.00030164,7]
[364652691,1749181851338,-480.0,0.00030164,7]
[364652692,1749181851348,-491.53831758,0.00030164,7]
[364652693,1749181851357,-151.0,0.00030164,7]
[364652694,1749181851366,-480.0,0.00030164,7]
[364652695,1749181851376,-151.0,0.00030164,7]
[364652696,1749181851385,-480.0,0.00030164,7]
[364652697,1749181851395,-485.31481093,0.00030164,7]
[364652698,1749181851407,-300.0,0.00030164,7]
[364652699,1749181851419,-850.35,0.00030164,7]
[364652700,1749181851428,-487.91355193,0.00030164,7]
[364652701,1749181851438,-480.0,0.00030164,7]
[364652702,1749181851448,-606.93062687,0.00030164,7]
[364652703,1749181851458,-472.13555142,0.00030164,7]
[364652704,1749181851467,-426.90771548,0.00030164,7]
[364652705,1749181851477,-494.8710418,0.00030164,7]
[364652706,1749181851489,-480.0,0.00030164,7]
[364652707,1749181851499,-480.0,0.00030164,7]
[364652708,1749181851508,-480.0,0.00030164,7]
[364652709,1749181851518,-480.0,0.00030164,7]
[364652710,1749181851527,-420.0,0.00030164,7]
[364652711,1749181851536,-480.0,0.00030164,7]
[364652712,1749181851546,-480.0,0.00030164,7]
[364652713,1749181851556,-210.989504,0.00030164,7]
[364652714,1749181851565,-480.0,0.00030164,7]
[364652715,1749181851574,-480.0,0.00030164,7]
[364652716,1749181851584,-480.0,0.00030164,7]
[364652717,1749181851593,-1515.6,0.00030164,7]
[364652718,1749181851602,-480.0,0.00030164,7]
[364652719,1749181851612,-480.0,0.00030164,7]
[364652720,1749181851621,-500.0,0.00030164,7]
[364652721,1749181851630,-500.0,0.00030164,7]
[364652722,1749181851639,-500.0,0.00030164,7]
[364652723,1749181851650,-500.0,0.00030164,7]
[364652724,1749181851660,-500.0,0.00030164,7]
[364652725,1749181851669,-480.0,0.00030164,7]
[364652726,1749181851679,-480.0,0.00030164,7]
[364652727,1749181851688,-500.0,0.00030164,7]
[364652728,1749181851698,-480.0,0.00030164,7]
[364652729,1749181851707,-500.0,0.00030164,7]
[364652730,1749181851717,-507.31678381,0.00030164,7]
[364652731,1749181851726,-480.0,0.00030164,7]
[364652732,1749181851736,-152.699193,0.00030164,7]
[364652733,1749181851746,-480.0,0.00030164,7]
[364652734,1749181851755,-463.74791543,0.00030164,7]
[364652735,1749181851765,-480.0,0.00030164,7]
[364652736,1749181851774,-480.0,0.00030164,7]
[364652737,1749181851784,-485.83058293,0.00030164,7]
[364652738,1749181851793,-482.6790354,0.00030164,7]
[364652739,1749181851803,-480.0,0.00030164,7]
[364652740,1749181851813,-489.92817646,0.00030164,7]
[364652741,1749181851822,-481.23099405,0.00030164,7]
[364652742,1749181851832,-480.0,0.00030164,7]
[364652743,1749181851842,-480.0,0.00030164,7]
[364652744,1749181851851,-480.0,0.00030164,7]
[364652745,1749181851861,-580.5,0.00030164,7]
[364652746,1749181851871,-1410.71,0.00030164,7]
[364652747,1749181851880,-480.0,0.00030164,7]
[364652748,1749181851890,-480.0,0.00030164,7]
[364652749,1749181851900,-480.0,0.00030164,7]
[364652750,1749181851909,-480.0,0.00030164,7]
[364652751,1749181851919,-697.53,0.00030164,7]
[364652752,1749181851928,-491.50050477,0.00030164,7]
[364652753,1749181851938,-480.0,0.00030164,7]
[364652754,1749181851947,-481.55906579,0.00030164,7]
[364652755,1749181851957,-485.58666464,0.00030164,7]
[364652756,1749181851966,-480.0,0.00030164,7]
[364652757,1749181851976,-1347.2,0.00030164,7]
[364652758,1749181851986,-480.0,0.00030164,7]
[364652759,1749181851995,-365.53346045,0.00030164,7]
[364652760,1749181852005,-480.0,0.00030164,7]
[364652761,1749181852014,-480.0,0.00030164,7]
[364652762,1749181852024,-480.0,0.00030164,7]
[364652763,1749181852033,-151.0,0.00030164,7]
[364652764,1749181852042,-219.9319816,0.00030164,7]
[364652765,1749181852051,-480.0,0.00030164,7]
[364652766,1749181852061,-151.0,0.00030164,7]
[364652767,1749181852072,-480.0,0.00030164,7]
[364652768,1749181852144,-404.46508848,0.00030164,7]
[364652769,1749181852155,-480.0,0.00030164,7]
[364652770,1749181852164,-480.0,0.00030164,7]
[364652771,1749181852174,-483.32356621,0.00030164,7]
[364652772,1749181852183,-151.0,0.00030164,7]
[364652773,1749181852192,-480.0,0.00030164,7]
[364652774,1749181852201,-151.0,0.00030164,7]
[364652775,1749181852210,-492.22967703,0.00030164,7]